bitfinex-derivatives/quotes_SOLF0:USTF0_20250110
["timestamp","ask_amount","ask_price","bid_price","bid_amount"]
[1736497591040,6.65200191,192.27,192.22,2.6013]
[1736497591429,11.35200191,192.27,192.22,2.6013]
[1736497591839,6.65200191,192.25,192.22,2.6013]
[1736497592140,13.95270191,192.27,192.22,2.6013]
[1736497592738,13.95270191,192.27,192.2,6.65200191]
[1736497592938,13.95270191,192.27,192.23,2.6011]
[1736497595343,13.95270191,192.27,192.22,2.6013]
[1736497596245,6.65200191,192.25,192.19,3.0362]
[1736497596442,6.65200191,192.23,192.12,223.95723509]
[1736497596637,6.65200191,192.23,192.15,69.49668042]
[1736497597847,6.65200191,192.23,192.17,6.65200191]
[1736497599244,6.65200191,192.23,192.18,2.6018]
[1736497600752,9.25310191,192.23,192.18,2.6018]
[1736497601651,6.65200191,192.23,192.18,2.6018]
[1736497602445,4.66,192.26,192.19,6.65200191]
[1736497602651,11.31200191,192.28,192.23,6.65200191]
[1736497603252,11.31200191,192.28,192.21,6.65200191]
[1736497604352,11.31200191,192.28,192.23,2.6011]
[1736497605354,13.91250191,192.28,192.23,2.6011]
[1736497605655,13.91250191,192.28,192.22,2.6013]
[1736497606349,11.31200191,192.28,192.22,2.6013]
[1736497606550,6.65200191,192.26,192.19,6.65200191]
[1736497606755,6.65200191,192.24,192.13,198.1316]
[1736497606952,6.65200191,192.24,192.17,6.65200191]
[1736497607154,9.25300191,192.24,192.17,9.25380191]
[1736497607358,9.25300191,192.24,192.17,6.65200191]
[1736497607854,6.65200191,192.24,192.19,2.6017]
[1736497609558,9.25290191,192.25,192.2,2.6015]
[1736497609754,6.65200191,192.25,192.2,2.6015]
[1736497609961,4.66,192.28,192.21,6.65200191]
[1736497611159,4.66,192.28,192.23,2.601]
[1736497613362,7.2606,192.28,192.22,2.6013]
[1736497613565,6.65200191,192.27,192.22,2.6013]
[1736497615162,9.25260191,192.27,192.22,2.6013]
[1736497615356,6.65200191,192.27,192.21,6.65200191]
[1736497615554,4.66,192.28,192.19,9.25360191]
[1736497615555,6.65200191,192.25,192.19,9.25360191]
[1736497617161,9.25290191,192.25,192.19,9.25360191]
[1736497620163,2.6009,192.25,192.19,9.25360191]
[1736497620369,4.66,192.28,192.21,6.65200191]
[1736497621771,9.25270191,192.27,192.21,9.25340191]
[1736497622372,6.65200191,192.25,192.19,6.65200191]
[1736497622573,6.65200191,192.25,192.17,6.65200191]
[1736497622776,6.65200191,192.25,192.2,2.6015]
[1736497622969,6.65200191,192.27,192.19,6.65200191]
[1736497623173,11.31200191,192.27,192.21,6.65200191]
[1736497623374,11.31200191,192.27,192.2,1.6154]
[1736497623573,2.6007,192.26,192.2,4.2169]
[1736497626071,2.6007,192.26,192.2,2.6015]
[1736497626276,2.6009,192.25,192.2,2.6015]
[1736497626777,6.65200191,192.25,192.19,6.65200191]
[1736497626974,2.601,192.24,192.19,6.65200191]
[1736497628176,2.601,192.24,192.19,9.25360191]
[1736497629478,2.601,192.24,192.19,2.6016]
[1736497630172,6.65200191,192.23,192.14,1.5425]
[1736497630374,6.65200191,192.21,192.14,1.5425]
[1736497630577,6.65200191,192.21,192.14,8.19450191]
[1736497630974,9.25350191,192.21,192.15,2.6021]
[1736497631772,9.25350191,192.21,192.15,6.65200191]
[1736497631976,9.25350191,192.21,192.16,2.6021]
[1736497632678,6.65200191,192.21,192.16,2.6021]
[1736497633281,6.65200191,192.23,192.17,6.65200191]
[1736497633581,9.25310191,192.23,192.18,2.6018]
[1736497634878,9.25310191,192.23,192.17,6.65200191]
[1736497635185,6.65200191,192.21,192.15,6.65200191]
[1736497635687,6.65200191,192.21,192.16,2.602]
[1736497636478,6.65200191,192.21,192.14,1.5425]
[1736497636681,6.65200191,192.19,192.14,4.1447]
[1736497637478,6.65200191,192.19,192.14,1.5425]
[1736497637683,6.65200191,192.19,192.15,2.6022]
[1736497637877,7.2616,192.2,192.15,2.6022]
[1736497638282,7.2616,192.2,192.15,9.25420191]
[1736497641285,7.2616,192.2,192.15,2.6022]
[1736497641485,6.65200191,192.19,192.15,2.6022]
[1736497644585,7.2616,192.2,192.15,9.25420191]
[1736497647800,6.65200191,192.17,192.13,3.1316]
[1736497648095,2.6021,192.16,192.11,9.25470191]
[1736497649595,9.25400191,192.17,192.12,2.6026]
[1736497658005,6.65200191,192.15,192.12,2.6026]
[1736497661504,9.25400191,192.17,192.12,2.6026]
[1736497661901,6.65200191,192.17,192.12,2.6026]
[1736497664308,6.65200191,192.17,192.13,2.6025]
[1736497664909,2.6017,192.19,192.14,2.6023]
[1736497665108,6.65200191,192.18,192.14,2.6023]
[1736497666709,6.65200191,192.18,192.13,6.65200191]
[1736497667010,11.31200191,192.2,192.13,6.65200191]
[1736497667212,6.65200191,192.22,192.17,6.65200191]
[1736497667514,4.66,192.24,192.19,6.65200191]
[1736497668606,11.31200191,192.24,192.19,6.65200191]
[1736497668818,11.31200191,192.24,192.17,6.65200191]
[1736497669411,6.65200191,192.24,192.17,6.65200191]
[1736497669611,11.31200191,192.24,192.17,6.65200191]
[1736497669816,11.31200191,192.24,192.19,2.6016]
[1736497672017,11.31200191,192.24,192.21,2.6014]
[1736497680222,4.66,192.24,192.23,2.6011]
[1736497680519,6.65200191,192.3,192.22,6.65200191]
[1736497680719,4.66,192.29,192.22,6.65200191]
[1736497681310,6.65200191,192.3,192.22,6.65200191]
[1736497681514,11.31200191,192.3,192.22,6.65200191]
[1736497682121,13.91230191,192.3,192.24,2.6009]
[1736497682416,4.66,192.3,192.22,6.65200191]
[1736497682722,6.65200191,192.27,192.2,6.65200191]
[1736497683518,6.65200191,192.25,192.2,6.65200191]
[1736497683920,6.65200191,192.25,192.2,2.6015]
[1736497685420,6.65200191,192.23,192.18,2.6017]
[1736497687228,9.25320191,192.23,192.18,2.6017]
[1736497687522,6.65200191,192.21,192.16,2.6019]
[1736497688227,6.65200191,192.21,192.15,6.65200191]
[1736497688424,6.65200191,192.23,192.17,6.65200191]
[1736497688822,6.65200191,192.23,192.18,2.6018]
[1736497689527,6.65200191,192.23,192.16,2.602]
[1736497689730,6.65200191,192.23,192.15,6.65200191]
[1736497690230,6.65200191,192.21,192.16,2.6021]
[1736497692424,6.65200191,192.21,192.15,2.6022]
[1736497692625,6.65200191,192.19,192.14,65.95334713]
[1736497693122,6.65200191,192.17,192.1,1.5024]
[1736497693429,6.65200191,192.17,192.1,8.15440191]
[1736497693627,9.25410191,192.17,192.1,10.75720191]
[1736497694425,6.65200191,192.17,192.1,10.75720191]
[1736497694634,2.6021,192.16,192.1,10.75720191]
[1736497695231,2.6021,192.16,192.1,4.1052]
[1736497695932,6.65200191,192.17,192.1,4.1052]
[1736497695933,2.6022,192.15,192.1,4.1052]
[1736497697128,2.6022,192.15,192.1,1.5024]
[1736497697333,2.6022,192.15,192.11,2.6027]
[1736497698129,9.25400191,192.17,192.13,2.6025]
[1736497698328,4.66,192.18,192.11,6.65200191]
[1736497698537,11.31200191,192.21,192.15,6.65200191]
[1736497699030,13.91340191,192.21,192.16,2.6021]
[1736497700434,11.31200191,192.21,192.16,2.6021]
[1736497701233,4.66,192.21,192.17,6.65200191]
[1736497701836,4.66,192.21,192.19,2.6016]
[1736497702034,6.65200191,192.25,192.19,2.6016]
[1736497702035,6.65200191,192.24,192.19,2.6016]
[1736497702331,11.31200191,192.24,192.19,2.6016]
[1736497702732,6.65200191,192.24,192.19,2.6016]
[1736497702933,11.31200191,192.24,192.19,2.6016]
[1736497703128,6.65200191,192.24,192.21,2.6014]
[1736497703328,2.6006,192.28,192.21,6.65200191]
[1736497703329,6.65200191,192.26,192.21,6.65200191]
[1736497703534,4.66,192.27,192.21,6.65200191]
[1736497704029,2.6009,192.25,192.11,28.95723509]
[1736497704229,6.65200191,192.26,192.19,6.65200191]
[1736497704732,9.25270191,192.26,192.19,9.25350191]
[1736497705135,6.65200191,192.24,192.19,9.25350191]
[1736497705834,6.65200191,192.24,192.19,2.6015]
[1736497710242,9.25300191,192.24,192.18,2.6018]
[1736497710543,6.65200191,192.24,192.17,6.65200191]
[1736497711739,6.65200191,192.24,192.18,1.4886]
[1736497712139,6.65200191,192.24,192.19,2.6016]
[1736497712839,9.25300191,192.24,192.18,4.0904]
[1736497713036,9.25300191,192.24,192.18,1.4886]
[1736497713242,6.65200191,192.24,192.18,1.4886]
[1736497713438,6.65200191,192.24,192.2,2.6015]
[1736497713841,6.65200191,192.26,192.19,6.65200191]
[1736497714035,11.31200191,192.26,192.21,2.6013]
[1736497714637,9.25300191,192.24,192.18,3.0375]
[1736497715544,6.65200191,192.24,192.18,3.0375]
[1736497715738,6.65200191,192.22,192.11,62.86318268]
[1736497715941,6.65200191,192.22,192.12,3.2447]
[1736497716134,6.65200191,192.2,192.15,2.6022]
[1736497716343,2.6015,192.21,192.15,2.6022]
[1736497716544,4.66,192.26,192.14,6.65200191]
[1736497716741,9.25330191,192.22,192.14,6.65200191]
[1736497717547,9.25330191,192.22,192.16,2.602]
[1736497718445,6.65200191,192.22,192.16,2.602]
[1736497718646,2.6014,192.21,192.16,2.602]
[1736497720046,6.65200191,192.2,192.14,6.65200191]
[1736497720245,6.65200191,192.2,192.15,2.6022]
[1736497722447,9.25360191,192.2,192.15,2.6022]
[1736497724343,9.25360191,192.2,192.13,6.65200191]
[1736497724550,9.25360191,192.2,192.14,2.6023]
[1736497728150,9.25330191,192.22,192.15,6.65200191]
[1736497728551,9.25330191,192.22,192.16,2.602]
[1736497732454,2.6011,192.23,192.18,2.6018]
[1736497732654,9.25310191,192.23,192.18,2.6018]
[1736497732951,13.91310191,192.23,192.18,2.6018]
[1736497733552,11.31200191,192.23,192.12,3.2447]
[1736497733754,9.25340191,192.21,192.15,2.6021]
[1736497736253,4.66,192.23,192.12,3.2447]
[1736497736453,6.65200191,192.17,192.12,5.8473]
[1736497736646,6.65200191,192.17,192.12,3.2447]
[1736497738153,9.25410191,192.17,192.12,3.2447]
[1736497738453,6.65200191,192.17,192.12,3.2447]
[1736497739454,2.6021,192.16,192.12,3.2447]
[1736497740053,4.66,192.23,192.12,3.2447]
[1736497740252,6.65200191,192.19,192.12,9.89670191]
[1736497740953,4.66,192.21,192.16,6.65200191]
[1736497741152,4.66,192.21,192.18,6.65200191]
[1736497741358,4.66,192.21,192.18,9.25370191]
[1736497741659,4.66,192.21,192.18,2.6017]
[1736497742755,4.66,192.21,192.16,6.65200191]
[1736497742958,4.66,192.21,192.16,9.25390191]
[1736497743160,4.66,192.21,192.16,6.65200191]
[1736497744160,4.66,192.21,192.17,2.6019]
[1736497744657,4.66,192.21,192.18,2.6018]
[1736497744854,8.74282052,192.3,192.2,6.65200191]
[1736497745061,8.74282052,192.3,192.22,6.65200191]
[1736497745259,6.65200191,192.29,192.22,6.65200191]
[1736497745456,2.6005,192.28,192.22,6.65200191]
[1736497745862,6.65200191,192.29,192.22,6.65200191]
[1736497746163,6.65200191,192.29,192.23,2.601]
[1736497746863,8.74282052,192.35,192.26,6.65200191]
[1736497747061,8.74282052,192.37,192.17,199.66]
[1736497747262,15.39482243,192.37,192.3,6.65200191]
[1736497747458,8.74282052,192.37,192.32,6.65200191]
[1736497747660,166.72164731,192.38,192.32,6.65200191]
[1736497747967,9.25100191,192.39,192.32,6.65200191]
[1736497748168,6.65200191,192.39,192.32,6.65200191]
[1736497748467,6.65200191,192.37,192.31,2.6]
[1736497748664,6.65200191,192.37,192.3,6.65200191]
[1736497749365,6.65200191,192.35,192.28,9.25230191]
[1736497749564,6.65200191,192.35,192.28,6.65200191]
[1736497750371,9.25160191,192.35,192.28,6.65200191]
[1736497751468,6.65200191,192.35,192.28,6.65200191]
[1736497752173,6.65200191,192.35,192.29,2.6003]
[1736497753475,6.65200191,192.35,192.28,6.65200191]
[1736497753668,9.25150191,192.35,192.28,9.25240191]
[1736497755973,6.65200191,192.35,192.28,9.25240191]
[1736497757078,2.5992,192.38,192.32,6.65200191]
[1736497757276,6.65200191,192.39,192.32,6.65200191]
[1736497758675,6.65200191,192.37,192.32,6.65200191]
[1736497758880,6.65200191,192.37,192.3,9.25210191]
[1736497759282,6.65200191,192.37,192.31,2.6]
[1736497759678,9.25120191,192.37,192.3,6.65200191]
[1736497759980,9.25120191,192.37,192.3,9.25220191]
[1736497760579,2.5994,192.36,192.3,9.25220191]
[1736497761279,6.65200191,192.35,192.3,2.6002]
[1736497762183,6.65200191,192.35,192.28,6.65200191]
[1736497762374,6.65200191,192.33,192.28,9.25240191]
[1736497762573,6.65200191,192.33,192.26,1.4774]
[1736497762774,6.65200191,192.31,192.26,1.4774]
[1736497762979,6.65200191,192.31,192.25,3.182]
[1736497763183,2.6002,192.3,192.25,3.182]
[1736497763984,6.65200191,192.31,192.25,3.182]
[1736497764178,6.65200191,192.27,192.21,6.65200191]
[1736497764678,9.25260191,192.27,192.21,6.65200191]
[1736497765983,6.65200191,192.27,192.19,4.7257]
[1736497766185,6.65200191,192.27,192.2,6.65200191]
[1736497766885,2.6009,192.25,192.2,6.65200191]
[1736497767086,6.65200191,192.27,192.2,6.65200191]
[1736497768188,2.6007,192.26,192.21,2.6014]
[1736497769894,6.65200191,192.27,192.23,2.6011]
[1736497770392,9.25260191,192.27,192.23,2.6011]
[1736497771195,2.6007,192.26,192.21,2.6013]
[1736497772496,9.25260191,192.27,192.21,2.6013]
[1736497774698,9.25260191,192.27,192.2,6.65200191]
[1736497774899,9.25260191,192.27,192.22,2.6013]
[1736497776298,6.65200191,192.27,192.22,2.6013]
[1736497779894,9.25260191,192.27,192.22,2.6013]
[1736497780090,6.65200191,192.27,192.2,6.65200191]
[1736497780296,6.65200191,192.27,192.24,2.6009]
[1736497781499,6.65200191,192.29,192.24,2.6009]
[1736497784707,6.65200191,192.27,192.22,6.65200191]
[1736497785698,6.65200191,192.29,192.22,6.65200191]
[1736497785898,9.25240191,192.29,192.23,2.6011]
[1736497789211,6.65200191,192.29,192.22,6.65200191]
[1736497789415,6.65200191,192.29,192.24,2.6009]
[1736497789707,6.65200191,192.33,192.26,6.65200191]
[1736497790211,6.65200191,192.35,192.28,6.65200191]
[1736497790410,4.64,192.36,192.19,4.7257]
[1736497790411,9.25120191,192.37,192.31,2.6]
[1736497790906,6.65200191,192.37,192.3,6.65200191]
[1736497791110,2.5994,192.36,192.3,6.65200191]
[1736497793114,6.65200191,192.39,192.32,6.65200191]
[1736497793512,6.65200191,192.41,192.34,6.65200191]
[1736497793714,13.37608556,192.42,192.32,6.65200191]
[1736497793715,6.65200191,192.39,192.32,6.65200191]
[1736497794709,6.65200191,192.37,192.3,6.65200191]
[1736497794916,6.65200191,192.35,192.3,6.65200191]
[1736497795115,6.65200191,192.35,192.28,6.65200191]
[1736497795506,9.25160191,192.35,192.29,2.6003]
[1736497796417,6.65200191,192.35,192.28,6.65200191]
[1736497796616,6.65200191,192.35,192.3,9.25220191]
[1736497797214,6.65200191,192.37,192.3,6.65200191]
[1736497797516,9.25100191,192.39,192.33,2.5998]
[1736497797717,9.25100191,192.39,192.32,6.65200191]
[1736497799219,9.25100191,192.39,192.33,2.5998]
[1736497799714,6.65200191,192.42,192.36,9.25120191]
[1736497800018,6.65200191,192.42,192.36,6.65200191]
[1736497800415,2.5986,192.43,192.36,6.65200191]
[1736497800616,9.25060191,192.43,192.36,6.65200191]
[1736497801217,9.25060191,192.43,192.37,2.5992]
[1736497801413,9.25060191,192.43,192.36,6.65200191]
[1736497802115,9.25060191,192.43,192.36,9.25130191]
[1736497802311,2.5986,192.42,192.36,9.25130191]
[1736497803925,6.65200191,192.41,192.36,9.25130191]
[1736497804336,9.25070191,192.41,192.34,9.25150191]
[1736497804625,6.65200191,192.39,192.32,8.22360191]
[1736497805017,6.65200191,192.39,192.32,10.82340191]
[1736497805327,4.64,192.45,192.31,3.1225]
[1736497805328,6.65200191,192.35,192.31,3.1225]
[1736497806622,9.25160191,192.35,192.31,3.1225]
[1736497807428,9.25130191,192.37,192.31,3.1225]
[1736497807624,6.65200191,192.37,192.31,3.1225]
[1736497807824,6.65200191,192.37,192.31,5.7224]
[1736497809126,2.5994,192.36,192.31,5.7224]
[1736497811224,2.5995,192.35,192.31,5.7224]
[1736497813318,2.5998,192.33,192.29,2.6003]
[1736497813523,6.65200191,192.33,192.27,1.6068]
[1736497813718,6.65200191,192.31,192.25,6.65200191]
[1736497814126,6.65200191,192.29,192.23,9.76750191]
[1736497814829,9.25230191,192.29,192.24,2.6009]
[1736497815725,9.25230191,192.29,192.25,2.6009]
[1736497815923,9.25230191,192.29,192.23,9.76750191]
[1736497816123,6.65200191,192.27,192.19,1.544]
[1736497816329,6.65200191,192.25,192.19,1.544]
[1736497816631,2.601,192.24,192.19,1.544]
[1736497817023,6.65200191,192.21,192.18,62.8437697]
[1736497817527,6.65200191,192.21,192.17,1.5061]
[1736497817725,4.64,192.28,192.13,3.1781]
[1736497817726,6.65200191,192.19,192.13,3.1781]
[1736497818128,6.65200191,192.19,192.13,1.6279]
[1736497819226,9.25370191,192.19,192.13,4.2304]
[1736497819628,6.65200191,192.19,192.13,4.2304]
[1736497820428,9.25370191,192.19,192.13,1.6279]
[1736497820628,6.65200191,192.19,192.13,1.6279]
[1736497821329,6.65200191,192.17,192.11,4.087]
[1736497821830,6.65200191,192.17,192.11,1.4844]
[1736497822034,6.65200191,192.17,192.12,2.6026]
[1736497822525,6.65200191,192.19,192.14,2.6023]
[1736497823524,6.65200191,192.19,192.12,9.25450191]
[1736497823728,6.65200191,192.17,192.12,2.6025]
[1736497824033,6.65200191,192.17,192.11,4.0871]
[1736497826533,6.65200191,192.13,192.08,1.5502]
[1736497827033,6.65200191,192.13,192.09,2.603]
[1736497827927,6.65200191,192.13,192.08,1.5502]
[1736497828432,6.65200191,192.13,192.07,8.20910191]
[1736497829033,4.64,192.14,192.09,6.65200191]
[1736497830230,4.64,192.14,192.11,9.25460191]
[1736497832933,15.62,192.28,192.11,6.65200191]
[1736497833231,6.65200191,192.18,192.11,6.65200191]
[1736497834133,6.65200191,192.16,192.09,6.65200191]
[1736497834529,6.65200191,192.16,192.09,9.25490191]
[1736497835230,6.65200191,192.16,192.1,2.6028]
[1736497835531,6.65200191,192.14,192.1,2.6028]
[1736497835737,6.65200191,192.14,192.08,2.603]
[1736497836734,6.65200191,192.12,192.07,4.1603]
[1736497838034,6.65200191,192.1,192.06,2.6034]
[1736497839837,6.65200191,192.12,192.08,2.6031]
[1736497842440,6.65200191,192.12,192.09,2.603]
[1736497844841,6.65200191,192.12,192.08,2.6031]
[1736497845638,4.64,192.13,192.08,2.6031]
[1736497847042,6.65200191,192.12,192.08,2.6031]
[1736497848836,6.65200191,192.12,192.06,6.65200191]
[1736497849042,6.65200191,192.15,192.08,6.65200191]
[1736497849938,6.65200191,192.13,192.06,6.65200191]
[1736497850436,6.65200191,192.13,192.08,2.603]
[1736497850638,6.65200191,192.13,192.06,6.65200191]
[1736497851038,6.65200191,192.13,192.09,2.6029]
[1736497851238,6.65200191,192.15,192.08,6.65200191]
[1736497851741,4.64,192.17,192.1,6.65200191]
[1736497851942,6.65200191,192.15,192.08,6.65200191]
[1736497852441,6.65200191,192.15,192.12,2.6026]
[1736497852636,6.65200191,192.15,192.08,6.65200191]
[1736497853140,6.65200191,192.15,192.1,2.6028]
[1736497854338,9.25420191,192.15,192.1,2.6028]
[1736497855134,6.65200191,192.15,192.1,2.6028]
[1736497860145,9.25420191,192.15,192.1,2.6028]
[1736497860345,6.65200191,192.13,192.1,2.6028]
[1736497860540,6.65200191,192.13,192.08,2.6031]
[1736497862249,9.25450191,192.13,192.08,2.6031]
[1736497863445,6.65200191,192.13,192.08,2.6031]
[1736497864353,6.65200191,192.11,192.06,2.6033]
[1736497864953,2.6026,192.12,192.06,2.6033]
[1736497865154,6.65200191,192.11,192.06,2.6033]
[1736497867652,6.65200191,192.09,192.06,2.6033]
[1736497867955,9.25530191,192.07,192.02,2.6039]
[1736497868158,6.65200191,192.05,192.01,1.5674]
[1736497868553,6.65200191,192.05,192.01,4.1714]
[1736497868750,4.64,192.09,192.01,4.1714]
[1736497868949,6.65200191,192.03,192.01,2.604]
[1736497869150,6.65200191,192.03,191.99,6.73843237]
[1736497869151,6.65200191,192.03,191.99,1.5082]
[1736497869351,6.65200191,192.01,191.96,1.4931]
[1736497869556,6.65200191,191.99,191.96,1.4931]
[1736497869760,6.65200191,191.99,191.96,4.0978]
[1736497869957,6.65200191,191.97,191.94,1.5566]
[1736497870353,6.65200191,191.97,191.92,28.95723509]
[1736497870757,6.65200191,191.97,191.9,1.4931]
[1736497871058,6.65200191,191.97,191.92,2.6053]
[1736497871461,6.65200191,191.97,191.9,1.4931]
[1736497871661,6.65200191,191.97,191.93,2.6052]
[1736497871866,6.65200191,191.95,191.93,2.6052]
[1736497872360,6.65200191,191.95,191.92,2.6053]
[1736497872564,6.65200191,191.93,191.9,1.4931]
[1736497872753,6.65200191,191.91,191.84,7.24300145]
[1736497872954,6.65200191,191.89,191.84,17.01610336]
[1736497873160,6.65200191,191.89,191.84,9.77310191]
[1736497873354,6.65200191,191.91,191.84,9.77310191]
[1736497873565,6.65200191,191.91,191.86,2.6061]
[1736497873864,6.65200191,191.91,191.84,9.77310191]
[1736497875057,6.65200191,191.91,191.88,2.6059]
[1736497875762,6.65200191,191.91,191.84,9.77310191]
[1736497876960,6.65200191,191.99,191.9,6.65200191]
[1736497877157,6.65200191,192.01,191.93,6.65200191]
[1736497877361,6.65200191,192.01,191.95,6.65200191]
[1736497877560,4.64,192.02,191.96,1.5936]
[1736497877956,6.65200191,192.01,191.96,1.5936]
[1736497878158,6.65200191,191.99,191.96,1.5936]
[1736497878358,6.65200191,191.99,191.94,1.6072]
[1736497878562,6.65200191,191.97,191.94,1.6072]
[1736497878763,6.65200191,191.95,191.87,6.65200191]
[1736497878962,6.65200191,191.91,191.86,3.1159]
[1736497879469,10.43336614,191.94,191.86,3.1159]
[1736497880968,13.03846614,191.94,191.88,2.6059]
[1736497881164,10.43336614,191.94,191.86,3.1159]
[1736497881865,2.6052,191.93,191.86,3.1159]
[1736497882071,10.43336614,191.94,191.86,3.1159]
[1736497883067,13.03846614,191.94,191.88,2.6059]
[1736497883371,13.03846614,191.94,191.86,1.5811]
[1736497883872,10.43336614,191.91,191.85,1.5936]
[1736497884570,10.43336614,191.91,191.81,64.59996507]
[1736497884770,13.03886614,191.91,191.84,2.6064]
[1736497884970,13.03886614,191.91,191.81,64.59996507]
[1736497885869,13.03886614,191.91,191.85,2.6063]
[1736497889568,10.43336614,191.88,191.83,2.6064]
[1736497889877,15.07336614,191.88,191.83,2.6064]
[1736497890575,17.67926614,191.88,191.82,2.6067]
[1736497890774,17.67926614,191.88,191.81,1.6398]
[1736497891173,15.07336614,191.88,191.81,2.6068]
[1736497891378,17.67926614,191.88,191.8,1.6147]
[1736497892078,17.67926614,191.88,191.82,2.6066]
[1736497894378,15.07336614,191.88,191.8,1.6147]
[1736497895181,15.07336614,191.88,191.84,2.6063]
[1736497896676,17.67936614,191.88,191.81,2.6067]
[1736497897278,15.07336614,191.88,191.8,1.6147]
[1736497897478,17.67926614,191.88,191.82,2.6067]
[1736497897679,15.07336614,191.88,191.82,2.6067]
[1736497899083,2.606,191.87,191.82,2.6067]
[1736497901183,10.43336614,191.85,191.82,2.6067]
[1736497901384,10.43336614,191.85,191.75,1.5178]
[1736497901385,13.03976614,191.85,191.79,2.607]
[1736497901575,13.03976614,191.85,191.75,3.1583]
[1736497901779,10.43336614,191.85,191.75,3.1583]
[1736497902181,10.43336614,191.85,191.82,2.6066]
[1736497902382,17.67936614,191.88,191.82,2.6066]
[1736497902683,15.07336614,191.88,191.76,10.43336614]
[1736497903385,15.07336614,191.88,191.84,2.6063]
[1736497903783,15.07336614,191.88,191.76,10.43336614]
[1736497904089,15.07336614,191.88,191.75,3.1583]
[1736497904282,10.43336614,191.85,191.75,3.1583]
[1736497905087,10.43336614,191.85,191.81,2.6067]
[1736497905287,15.07336614,191.88,191.76,10.43336614]
[1736497905585,4.64,191.88,191.79,10.43336614]
[1736497905780,10.43336614,191.91,191.79,10.43336614]
[1736497905985,2.6056,191.9,191.79,10.43336614]
[1736497906182,10.43336614,191.91,191.79,10.43336614]
[1736497906580,15.07336614,191.91,191.79,10.43336614]
[1736497906786,2.6058,191.89,191.79,10.43336614]
[1736497907286,15.07336614,191.91,191.79,10.43336614]
[1736497907287,2.6056,191.9,191.86,2.6061]
[1736497907587,15.07336614,191.91,191.79,10.43336614]
[1736497907989,2.6058,191.89,191.76,10.43336614]
[1736497908181,10.43336614,191.88,191.76,10.43336614]
[1736497908378,13.03926614,191.88,191.83,2.6064]
[1736497908883,13.03926614,191.88,191.76,10.43336614]
[1736497909278,2.6062,191.86,191.75,7.7983]
[1736497909486,10.43336614,191.85,191.78,2.6072]
[1736497909683,10.43336614,191.85,191.75,3.1583]
[1736497909884,10.43336614,191.88,191.75,3.1583]
[1736497910382,10.43336614,191.88,191.81,2.6067]
[1736497910583,2.6063,191.86,191.81,2.6067]
[1736497911783,2.6063,191.86,191.75,3.1583]
[1736497911784,2.6063,191.86,191.82,2.6067]
[1736497912385,2.606,191.87,191.82,2.6067]
[1736497912782,2.606,191.87,191.83,2.6066]
[1736497913092,8.6983361,191.95,191.79,10.43336614]
[1736497913283,10.43336614,191.93,191.79,10.43336614]
[1736497913488,10.43336614,191.96,191.82,10.43336614]
[1736497913683,8.6983361,191.98,191.85,10.43336614]
[1736497914093,15.07336614,191.99,191.94,2.6049]
[1736497914287,4.64,192.0,191.88,10.43336614]
[1736497914481,10.43336614,192.02,191.91,10.43336614]
[1736497914683,27.13493047,192.03,191.92,3.1368]
[1736497914882,4.64,192.03,191.92,3.1368]
[1736497915090,8.72133932,192.02,191.92,3.1368]
[1736497915285,4.64,192.03,191.92,3.1368]
[1736497915785,4.64,192.03,192.01,2.6041]
[1736497915985,4.64,192.03,191.92,3.1368]
[1736497916385,10.43336614,192.08,191.97,10.43336614]
[1736497916788,10.43336614,192.08,192.04,2.6036]
[1736497917086,10.43336614,192.08,191.97,10.43336614]
[1736497917690,10.43336614,192.08,191.94,10.43336614]
[1736497917892,2.6033,192.07,192.0,2.6041]
[1736497918387,10.43336614,192.05,192.0,2.6041]
[1736497918891,10.43336614,192.08,191.94,10.43336614]
[1736497919089,10.43336614,192.08,191.97,10.43336614]
[1736497919392,10.43336614,192.11,192.0,10.43336614]
[1736497919587,10.43336614,192.11,192.01,3.1535]
[1736497920189,10.43336614,192.11,192.07,2.6033]
[1736497920891,10.43336614,192.11,192.05,2.6035]
[1736497921088,10.43336614,192.11,192.01,3.1535]
[1736497921290,4.64,192.13,192.09,2.603]
[1736497921595,4.64,192.13,192.01,3.1535]
[1736497922093,4.64,192.13,192.07,2.6032]
[1736497922592,13.03616614,192.11,192.04,2.6037]
[1736497922792,13.03616614,192.11,192.01,3.1535]
[1736497923194,10.43336614,192.11,192.01,3.1535]
[1736497923389,10.43336614,192.14,192.03,10.43336614]